bitfinex-derivatives/quotes_SOLF0:USTF0_20230902
["timestamp","ask_amount","ask_price","bid_price","bid_amount"]
[1693676927364,0.72723808,19.349,19.345,152.37702478]
[1693676932167,0.72723808,19.349,19.343,111.28246448]
[1693676932370,15.51,19.347,19.343,111.28246448]
[1693676932569,0.45454546,19.346,19.343,111.28246448]
[1693676932867,15.51,19.347,19.343,111.28246448]
[1693676933068,0.45454546,19.346,19.343,111.28246448]
[1693676933266,15.51,19.347,19.343,111.28246448]
[1693676933465,0.45454546,19.346,19.343,111.28246448]
[1693676933663,15.51,19.347,19.343,111.28246448]
[1693676933860,0.45454546,19.346,19.343,111.28246448]
[1693676934062,15.51,19.347,19.343,111.28246448]
[1693676934262,0.45454546,19.346,19.343,111.28246448]
[1693676934462,15.51,19.347,19.343,111.28246448]
[1693676934669,0.45454546,19.346,19.343,111.28246448]
[1693676934869,15.51,19.347,19.343,111.28246448]
[1693676935070,0.45454546,19.346,19.343,111.28246448]
[1693676935269,15.51,19.347,19.343,111.28246448]
[1693676935468,0.45454546,19.346,19.343,111.28246448]
[1693676935666,15.51,19.347,19.343,111.28246448]
[1693676935871,0.45454546,19.346,19.343,111.28246448]
[1693676936171,15.51,19.347,19.343,111.28246448]
[1693676936371,0.45454546,19.346,19.343,111.28246448]
[1693676936670,15.51,19.347,19.343,111.28246448]
[1693676936871,0.45454546,19.346,19.343,111.28246448]
[1693676937165,15.51,19.347,19.343,111.28246448]
[1693676937373,0.45454546,19.346,19.343,111.28246448]
[1693676937569,15.51,19.347,19.343,111.28246448]
[1693676937869,0.45454546,19.346,19.343,111.28246448]
[1693676938166,15.51,19.347,19.343,111.28246448]
[1693676938365,16.69178354,19.349,19.343,111.28246448]
[1693676942875,16.69178354,19.349,19.343,111.22]
[1693676943968,16.69178354,19.349,19.343,111.28246448]
[1693676944774,16.23723808,19.349,19.343,111.28246448]
[1693676953378,0.72723808,19.349,19.343,111.28246448]
[1693676954078,16.23723808,19.349,19.343,111.28246448]
[1693676966194,0.72723808,19.349,19.343,111.28246448]
[1693676966391,0.72723808,19.349,19.346,111.22]
[1693676968497,20.3022,19.353,19.348,111.22]
[1693676968693,15.51,19.367,19.348,111.22]
[1693676968894,15.51,19.355,19.348,111.22]
[1693676972999,15.51,19.355,19.349,111.22]
[1693676973399,15.51,19.355,19.353,0.0624322]
[1693676974399,111.22,19.356,19.353,0.0624322]
[1693676978198,111.22,19.358,19.353,0.0624322]
[1693676978802,15.51,19.357,19.353,0.0624322]
[1693676982007,111.22,19.357,19.353,0.0624322]
[1693676986615,126.73,19.357,19.349,111.22]
[1693676986908,111.22,19.351,19.342,111.22]
[1693676987706,111.22,19.347,19.339,111.22]
[1693676988111,111.22,19.343,19.333,111.22]
[1693676989411,15.52,19.349,19.341,111.22]
[1693676991914,111.22,19.352,19.343,111.22]
[1693676992107,15.52,19.351,19.343,111.22]
[1693677000318,111.22,19.355,19.346,111.22]
[1693677000521,111.22,19.355,19.347,0.45454546]
[1693677001912,111.22,19.355,19.346,111.22]
[1693677002620,111.22,19.353,19.344,111.22]
[1693677011928,111.22,19.351,19.342,111.22]
[1693677017231,111.22,19.349,19.341,111.22]
[1693677017424,126.74,19.349,19.341,111.22]
[1693677032047,111.22,19.347,19.339,111.22]
[1693677039750,15.51,19.343,19.336,111.22]
[1693677039952,111.22,19.342,19.334,111.22]
[1693677040847,15.51,19.338,19.331,111.22]
[1693677041146,15.51,19.335,19.328,111.22]
[1693677041848,15.51,19.332,19.324,111.22]
[1693677042050,15.51,19.33,19.323,111.22]
[1693677042752,111.22,19.331,19.323,111.22]
[1693677043452,111.22,19.331,19.317,28.7357521]
[1693677043652,111.22,19.331,19.323,111.22]
[1693677043845,111.22,19.331,19.317,28.7357521]
[1693677044047,111.22,19.331,19.323,111.22]
[1693677044855,15.51,19.33,19.323,111.22]
[1693677054050,15.51,19.33,19.323,152.77946224]
[1693677057853,15.51,19.33,19.324,111.22]
[1693677059663,111.22,19.331,19.324,111.22]
[1693677062161,111.22,19.33,19.323,111.22]
[1693677062767,111.22,19.327,19.32,111.22]
[1693677064366,111.22,19.324,19.317,111.22]
[1693677064668,111.22,19.324,19.318,7.28979136]
[1693677065266,111.22,19.327,19.319,111.22]
[1693677067065,111.22,19.327,19.32,7.28980009]
[1693677067467,111.22,19.324,19.32,7.28980009]
[1693677067764,111.22,19.321,19.314,0.12511473]
[1693677067969,111.22,19.319,19.314,0.12511473]
[1693677069263,111.22,19.316,19.311,40.69906928]
[1693677069570,111.22,19.316,19.308,111.22]
[1693677069765,111.22,19.319,19.311,111.22]
[1693677070067,111.22,19.322,19.314,111.22]
[1693677070467,111.22,19.32,19.311,111.22]
[1693677071970,111.22,19.321,19.313,111.22]
[1693677073566,111.22,19.321,19.315,0.71512704]
[1693677074174,0.71800431,19.319,19.315,0.71512704]
[1693677074872,111.22,19.317,19.315,0.71512704]
[1693677075372,111.22,19.316,19.304,111.67454546]
[1693677075585,520.6251,19.318,19.305,0.45454546]
[1693677075769,111.22,19.309,19.301,111.22]
[1693677076370,111.22,19.304,19.296,0.45454546]
[1693677076570,111.22,19.302,19.292,6.7368656]
[1693677076768,111.22,19.304,19.295,111.22]
[1693677077073,111.22,19.304,19.296,0.45454546]
[1693677077275,124.2,19.306,19.296,0.45454546]
[1693677077473,124.2,19.304,19.294,7.19253125]
[1693677077673,124.2,19.299,19.286,124.2]
[1693677077871,124.2,19.299,19.287,6.73956967]
[1693677078066,20.734,19.298,19.287,6.73956967]
[1693677078272,20.734,19.298,19.286,124.2]
[1693677078273,124.2,19.29,19.283,0.45454546]
[1693677078474,496.8,19.295,19.274,124.2]
[1693677078475,124.2,19.288,19.274,124.2]
[1693677078670,124.2,19.29,19.275,7.20194341]
[1693677078870,124.2,19.29,19.25,1169.85066434]
[1693677078871,500.0,19.278,19.262,0.45454546]
[1693677079068,154.2,19.267,19.233,261.80796511]
[1693677079381,26.16491272,19.277,19.168,599.85066434]
[1693677079382,154.2,19.217,19.168,599.85066434]
[1693677079573,154.2,19.197,19.169,6.78722179]
[1693677079776,124.2,19.184,19.173,500.0]
[1693677079975,124.2,19.184,19.169,1.114]
[1693677079976,124.2,19.206,19.183,624.2]
[1693677080171,46.25100055,19.21,19.202,500.0]
[1693677080474,124.2,19.22,19.203,125.314]
[1693677080677,43.71470857,19.221,19.203,125.314]
[1693677080678,43.71470857,19.221,19.22,500.0]
[1693677080976,58.05479614,19.234,19.222,24.23679341]
[1693677081172,58.05479614,19.234,19.223,20.7893]
[1693677081373,182.25479614,19.234,19.223,20.7893]
[1693677081574,58.05479614,19.234,19.224,124.2]
[1693677081780,496.8,19.246,19.223,20.7893]
[1693677081781,124.2,19.242,19.227,124.2]
[1693677081980,124.2,19.249,19.235,124.2]
[1693677082180,124.2,19.255,19.241,124.2]
[1693677082384,93.65,19.25,19.229,93.65]
[1693677082582,93.65,19.25,19.239,20.7893]
[1693677082781,93.65,19.256,19.236,93.65]
[1693677083007,9.54619275,19.255,19.236,93.65]
[1693677083179,0.45454546,19.254,19.236,93.65]
[1693677083383,0.45454546,19.254,19.241,500.0]
[1693677083579,93.65,19.264,19.243,93.65]
[1693677083778,9.99708167,19.263,19.243,93.65]
[1693677083989,9.99708167,19.263,19.247,93.65]
[1693677084286,93.65,19.267,19.251,500.0]
[1693677084490,93.65,19.272,19.253,93.65]
[1693677084693,93.65,19.265,19.245,93.65]
[1693677084884,93.65,19.268,19.252,20.7298]
[1693677085489,93.65,19.265,19.252,20.7298]
[1693677085785,9.99416121,19.264,19.252,20.7298]
[1693677086092,0.45454546,19.263,19.252,20.7298]
[1693677086387,93.65,19.269,19.252,20.7298]
[1693677087280,124.71,19.274,19.252,20.7298]
[1693677087481,9.99314767,19.273,19.252,20.7298]
[1693677088082,71.00151778,19.336,19.252,20.7298]
[1693677088083,0.45454546,19.278,19.261,500.0]
[1693677088286,124.71,19.284,19.261,500.0]
[1693677088287,9.98990399,19.283,19.261,500.0]
[1693677088493,9.98990399,19.283,19.261,624.71]
[1693677088693,124.71,19.288,19.261,624.71]
[1693677088694,9.53535853,19.282,19.261,624.71]
[1693677088888,9.98990399,19.287,19.261,624.71]
[1693677089095,9.98990399,19.286,19.261,624.71]
[1693677089294,9.98990399,19.285,19.261,624.71]
[1693677089500,0.45454546,19.284,19.268,0.78932448]
[1693677089691,0.78065658,19.274,19.268,0.78932448]
[1693677089884,9.53535853,19.273,19.268,0.78932448]
[1693677090694,9.53535853,19.273,19.261,624.71]
[1693677091092,9.53535853,19.272,19.261,624.71]
[1693677091292,9.53535853,19.271,19.261,624.71]
[1693677091496,0.45454546,19.286,19.261,624.71]
[1693677091697,124.71,19.277,19.252,20.7298]
[1693677091996,0.79177814,19.269,19.252,20.7298]
[1693677092193,9.53496838,19.268,19.252,20.7298]
[1693677092388,0.79177814,19.269,19.252,20.7298]
[1693677092995,0.45454546,19.276,19.256,124.71]
[1693677093293,9.53481093,19.282,19.26,500.0]
[1693677093602,9.53481093,19.282,19.262,124.71]
[1693677093897,9.53481093,19.281,19.262,124.71]
[1693677094091,0.45454546,19.287,19.262,124.71]
[1693677094092,9.53481093,19.28,19.262,124.71]
[1693677094301,9.53481093,19.279,19.262,124.71]
[1693677094493,9.53481093,19.278,19.262,124.71]
[1693677094799,0.77322883,19.274,19.262,124.71]
[1693677095000,9.53481093,19.273,19.262,124.71]
[1693677095188,0.77322883,19.274,19.262,124.71]
[1693677095900,0.45454546,19.288,19.262,124.71]
[1693677096095,9.98661938,19.288,19.262,124.71]
[1693677096297,0.45454546,19.287,19.262,124.71]
[1693677096498,0.70361553,19.27,19.262,124.71]
[1693677097494,0.45454546,19.288,19.262,124.71]
[1693677097691,9.98839929,19.288,19.262,124.71]
[1693677097891,0.45454546,19.287,19.262,124.71]
[1693677098400,9.98839929,19.287,19.262,124.71]
[1693677098599,9.98839929,19.286,19.262,124.71]
[1693677098801,0.45454546,19.285,19.262,124.71]
[1693677099001,0.45454546,19.284,19.262,124.71]
[1693677099201,0.45454546,19.283,19.262,124.71]
[1693677099401,0.45454546,19.287,19.262,124.71]
[1693677101909,0.45454546,19.287,19.273,0.85396203]
[1693677102208,9.98839929,19.287,19.266,124.71]
[1693677102408,500.0,19.289,19.266,124.71]
[1693677102409,9.98839929,19.286,19.266,145.65440092]
[1693677102708,0.74434116,19.276,19.267,22.2265]
[1693677103612,0.45454546,19.286,19.267,22.2265]
[1693677103811,0.45454546,19.285,19.267,22.2265]
[1693677104110,9.5339708,19.288,19.267,22.2265]
[1693677104111,0.45454546,19.284,19.267,22.2265]
[1693677104409,0.85160442,19.273,19.267,22.2265]
[1693677105211,0.45454546,19.288,19.267,22.2265]
[1693677105504,9.98847867,19.288,19.267,22.2265]
[1693677105712,0.45454546,19.287,19.267,22.2265]
[1693677105909,0.79293568,19.272,19.267,22.2265]
[1693677106710,0.45454546,19.287,19.267,22.2265]
[1693677106904,0.45454546,19.286,19.267,48.1776]
[1693677107105,0.45454546,19.287,19.267,48.1776]
[1693677107510,0.80379432,19.271,19.268,0.15]
[1693677108212,0.45454546,19.287,19.268,0.15]
[1693677108411,9.9883854,19.287,19.268,0.15]
[1693677108610,0.45454546,19.286,19.268,0.15]
[1693677109506,15.56,19.284,19.268,26.09976]
[1693677109807,9.9883854,19.283,19.268,26.09976]
[1693677110015,15.56,19.281,19.268,26.09976]
[1693677110213,9.53383994,19.28,19.268,26.09976]
[1693677110511,9.53383994,19.279,19.268,26.09976]
[1693677110712,515.56,19.29,19.268,26.09976]
[1693677110713,9.53383994,19.278,19.268,26.09976]
[1693677110914,0.45454546,19.287,19.268,26.09976]
[1693677111215,0.45454546,19.286,19.268,26.09976]
[1693677111411,15.56,19.284,19.268,26.09976]
[1693677111716,9.98839797,19.283,19.268,26.09976]
[1693677112013,15.56,19.281,19.268,26.09976]
[1693677112320,9.53385251,19.28,19.268,26.09976]
[1693677112507,15.56,19.284,19.268,26.09976]
[1693677112508,9.53385251,19.279,19.268,26.09976]
[1693677112711,15.56,19.277,19.268,26.09976]
[1693677112916,16.01454546,19.284,19.268,0.15]
[1693677113112,9.98848986,19.283,19.268,0.15]
[1693677116922,9.98848986,19.283,19.267,22.2265]
[1693677116923,93.4,19.277,19.267,22.2265]
[1693677117113,15.56,19.273,19.263,0.06272402]
[1693677117312,0.45454546,19.272,19.264,0.15]
[1693677117508,593.4,19.28,19.264,0.15]
[1693677117509,9.9907128,19.279,19.264,0.15]
[1693677117707,15.56,19.277,19.264,0.15]
[1693677118016,9.9907128,19.276,19.263,0.06272402]
[1693677118212,15.56,19.274,19.263,0.06272402]
[1693677118415,9.9907128,19.273,19.263,0.06272402]
[1693677118718,15.56,19.271,19.263,0.06272402]
[1693677118913,9.9907128,19.272,19.263,0.06272402]
[1693677118914,15.56,19.274,19.263,0.06272402]
[1693677119114,9.99136591,19.273,19.263,0.06272402]
[1693677119309,15.56,19.271,19.263,0.06272402]
[1693677119508,15.56,19.274,19.263,0.06272402]
[1693677119711,9.99135502,19.273,19.263,0.06272402]
[1693677119913,15.56,19.271,19.263,0.06272402]
[1693677120119,15.56,19.277,19.263,0.06272402]
[1693677120319,9.99126906,19.276,19.263,0.06272402]
[1693677120622,15.56,19.274,19.263,0.06272402]
[1693677120819,9.99126906,19.273,19.263,0.06272402]
[1693677121117,15.56,19.271,19.263,0.06272402]
[1693677121309,15.56,19.274,19.263,0.06272402]
[1693677121512,9.99188783,19.273,19.263,0.06272402]
[1693677121817,15.56,19.271,19.263,0.06272402]
[1693677122010,93.4,19.276,19.257,92.97455196]
[1693677122011,15.56,19.274,19.257,92.97455196]
[1693677122216,15.56,19.268,19.25,593.4]
[1693677122512,15.56,19.268,19.251,21.2761]
[1693677123615,15.56,19.271,19.253,93.4]
[1693677123815,15.56,19.271,19.267,0.062711]
[1693677124016,16.01454546,19.274,19.267,0.062711]
[1693677124323,9.99182227,19.273,19.267,0.062711]
[1693677124625,15.56,19.271,19.267,0.062711]
[1693677125019,93.4,19.275,19.267,0.062711]
[1693677125020,16.01454546,19.274,19.267,0.062711]
[1693677125216,9.99186795,19.273,19.267,0.062711]
[1693677125420,15.56,19.271,19.256,93.4]
[1693677125621,15.56,19.271,19.253,93.4]
[1693677127521,15.56,19.271,19.251,21.2761]
[1693677127522,15.56,19.271,19.255,93.4]
[1693677131024,15.56,19.271,19.251,21.2761]
[1693677131231,93.4,19.28,19.262,93.4]
[1693677131430,9.53361935,19.279,19.262,93.4]
[1693677131731,9.53361935,19.279,19.263,21.5975]
[1693677132130,15.56,19.281,19.263,21.5975]
[1693677132331,9.53368051,19.28,19.263,21.5975]
[1693677133428,9.53368051,19.28,19.264,25.95514]
[1693677134031,93.4,19.279,19.264,25.95514]
[1693677134225,93.4,19.279,19.263,21.5975]
[1693677139030,93.4,19.279,19.267,0.06271099]
[1693677141431,0.45454546,19.287,19.267,0.06271099]
[1693677141432,93.4,19.276,19.267,0.06271099]
[1693677141633,15.57,19.274,19.267,0.06271099]
[1693677141830,0.45454546,19.273,19.267,0.06271099]
[1693677142029,15.57,19.274,19.257,57.12395863]
[1693677142232,0.45454546,19.273,19.257,57.12395863]
[1693677142430,15.57,19.271,19.257,57.12395863]
[1693677142631,15.57,19.274,19.257,57.12395863]
[1693677142831,0.45454546,19.273,19.257,57.12395863]
[1693677143131,15.57,19.271,19.257,57.12395863]
[1693677143332,15.57,19.274,19.257,57.12395863]
[1693677143532,0.45454546,19.273,19.257,57.12395863]
[1693677143834,15.57,19.271,19.257,57.12395863]
[1693677144037,15.57,19.274,19.257,57.12395863]
[1693677144330,0.45454546,19.273,19.257,57.12395863]
[1693677144526,93.4,19.27,19.251,93.4]
[1693677145037,93.4,19.267,19.25,22.62118633]
[1693677145732,93.4,19.267,19.248,93.4]
[1693677146129,15.57,19.265,19.248,93.4]
[1693677146339,15.57,19.262,19.245,93.4]
[1693677146535,16.02454546,19.262,19.245,93.4]
[1693677147235,16.02454546,19.262,19.246,21.9611]
[1693677148934,93.4,19.26,19.246,21.9611]
[1693677151531,93.4,19.263,19.246,21.9611]
[1693677151735,0.45454546,19.262,19.246,21.9611]
[1693677152737,93.4,19.26,19.246,21.9611]
[1693677154231,93.4,19.263,19.246,21.9611]
[1693677154440,0.45454546,19.262,19.246,21.9611]
[1693677155442,0.45454546,19.262,19.247,93.4]
[1693677155738,0.45454546,19.265,19.247,93.4]
[1693677158740,93.4,19.269,19.25,93.4]
[1693677160844,93.4,19.273,19.253,93.4]
[1693677161239,93.85454546,19.273,19.253,93.4]
[1693677161440,93.4,19.273,19.253,93.4]
[1693677163539,93.4,19.273,19.254,25.96862]
[1693677164042,93.4,19.273,19.256,93.4]
[1693677164538,93.4,19.273,19.257,21.4076]
[1693677165242,93.4,19.273,19.256,82.8346639]
[1693677165437,654.2,19.282,19.256,82.8346639]
[1693677165438,0.45454546,19.277,19.256,25.96593]
[1693677165737,93.4,19.268,19.256,25.96593]
[1693677166339,93.4,19.262,19.244,93.4]
[1693677167238,228.84,19.26,19.246,228.84]
[1693677167645,228.84,19.254,19.239,228.84]
[1693677167845,228.84,19.25,19.236,228.84]
[1693677170550,228.84,19.25,19.237,22.0342]
[1693677171142,228.84,19.253,19.239,228.84]
[1693677171747,229.29454546,19.253,19.239,228.84]
[1693677171947,228.84,19.253,19.239,228.84]
[1693677172344,93.66,19.256,19.238,93.66]
[1693677172545,0.45454546,19.255,19.238,93.66]
[1693677172747,0.45454546,19.255,19.241,93.66]
[1693677172947,93.66,19.259,19.241,93.66]
[1693677173348,93.66,19.259,19.241,119.64617]
[1693677175357,93.66,19.259,19.242,6.46042836]
[1693677175758,93.66,19.259,19.242,32.44524836]
[1693677175964,93.66,19.259,19.243,6.46042836]
[1693677176463,93.66,19.259,19.242,25.98482]
[1693677176661,93.66,19.259,19.243,6.46002301]
[1693677176962,93.66,19.262,19.243,100.12002301]
[1693677177165,93.66,19.265,19.243,93.66]
[1693677177363,93.66,19.265,19.248,500.0]
[1693677177853,93.66,19.265,19.249,21.5875]
[1693677179657,93.66,19.267,19.249,115.2475]
[1693677180658,93.66,19.267,19.25,6.45719488]
[1693677181163,93.66,19.267,19.249,115.2475]
[1693677182460,93.66,19.262,19.249,21.5875]
[1693677182658,0.45454546,19.261,19.249,21.5875]
[1693677183767,0.45454546,19.261,19.256,0.06274695]
[1693677184364,93.66,19.26,19.256,1e-08]
[1693677184768,93.66,19.263,19.256,1e-08]
[1693677184966,0.45454546,19.262,19.256,1e-08]
[1693677189469,0.45454546,19.262,19.249,21.5875]
[1693677190571,0.45454546,19.262,19.256,0.06274702]
[1693677192263,228.85,19.258,19.256,0.06274702]
[1693677192669,15.58,19.257,19.249,21.5875]
[1693677195874,15.58,19.254,19.249,21.5875]
[1693677196074,15.58,19.255,19.249,21.5875]
[1693677196569,15.58,19.252,19.237,228.85]
[1693677196771,15.58,19.252,19.242,21.5662]
[1693677197370,15.58,19.252,19.237,228.85]
[1693677197568,15.58,19.249,19.238,21.5662]
[1693677198871,15.58,19.246,19.238,21.5662]
[1693677199079,228.85,19.244,19.238,21.5662]
[1693677199371,15.58,19.24,19.227,228.85]
[1693677199566,15.58,19.24,19.23,21.5662]
[1693677200777,228.85,19.243,19.23,250.4162]
[1693677200977,228.85,19.243,19.231,6.4662999]
[1693677201476,15.58,19.24,19.231,6.4662999]
[1693677201678,15.58,19.24,19.23,21.5662]
[1693677201973,228.85,19.24,19.23,21.5662]
[1693677202372,15.58,19.227,19.223,40.74805193]
[1693677202574,15.58,19.223,19.205,228.85]
[1693677202769,0.45454546,19.222,19.21,22.0533]
[1693677202979,0.45454546,19.222,19.211,6.47404584]
[1693677203279,15.58,19.224,19.211,6.47404584]
[1693677203479,15.58,19.218,19.211,6.47404584]
[1693677203776,15.58,19.215,19.206,22.0533]
[1693677203976,228.85,19.216,19.207,6.47528751]
[1693677204273,228.85,19.221,19.207,6.47528751]
[1693677204478,229.30454546,19.226,19.211,228.85]
[1693677204676,15.58,19.224,19.212,6.47528751]
[1693677204881,0.45454546,19.223,19.212,6.47528751]
[1693677205173,0.45454546,19.222,19.212,6.47528751]
[1693677205379,0.45454546,19.225,19.212,6.47528751]
[1693677206578,0.45454546,19.225,19.214,228.85]
[1693677206779,0.45454546,19.224,19.214,228.85]
[1693677206978,0.45454546,19.223,19.214,228.85]
[1693677207183,0.45454546,19.222,19.214,228.85]
[1693677207379,15.58,19.228,19.214,228.85]
[1693677207586,228.85,19.23,19.214,228.85]
[1693677207782,228.85,19.23,19.215,21.3182]
[1693677208582,228.85,19.227,19.215,21.3182]
[1693677210482,915.4,19.238,19.216,235.3214058]
[1693677210483,228.85,19.229,19.216,235.3214058]
[1693677210686,228.85,19.229,19.216,228.85]
[1693677211388,228.85,19.229,19.216,254.86998]
[1693677212186,15.58,19.233,19.218,228.85]
[1693677212187,228.85,19.232,19.218,228.85]
[1693677213187,0.45454546,19.234,19.222,228.85]
[1693677213387,0.45454546,19.233,19.222,228.85]
[1693677213589,0.45454546,19.236,19.222,228.85]
[1693677213887,15.58,19.235,19.216,26.01998]
[1693677214080,228.85,19.227,19.217,0.06287435]
[1693677215893,228.85,19.231,19.217,0.06287435]
[1693677218587,244.43,19.235,19.221,228.85]
[1693677218791,0.45454546,19.234,19.221,228.85]
[1693677220792,15.58,19.233,19.221,228.85]
[1693677222896,228.85,19.231,19.217,0.06287435]
[1693677227395,229.30454546,19.233,19.219,228.85]
[1693677227595,228.85,19.233,19.219,228.85]
[1693677228094,229.30454546,19.233,19.219,228.85]
[1693677228397,228.85,19.233,19.219,228.85]
[1693677228592,244.45,19.233,19.219,228.85]
[1693677228897,229.30454546,19.233,19.219,228.85]
[1693677229092,228.85,19.233,19.219,228.85]
[1693677229293,244.45,19.233,19.219,228.85]
[1693677229597,228.85,19.233,19.219,228.85]
[1693677230091,244.45,19.233,19.219,228.85]
[1693677230296,229.30454546,19.233,19.219,228.85]
[1693677230490,228.85,19.233,19.219,228.85]
[1693677230693,244.45,19.233,19.219,228.85]
[1693677230895,229.30454546,19.233,19.219,228.85]
[1693677231096,228.85,19.233,19.219,228.85]
[1693677231295,244.45,19.233,19.219,228.85]
[1693677231496,229.30454546,19.233,19.219,228.85]
[1693677231700,228.85,19.233,19.219,228.85]
[1693677231996,15.6,19.233,19.219,228.85]
[1693677232500,0.45454546,19.234,19.223,228.85]
[1693677232697,0.45454546,19.233,19.223,228.85]
[1693677233002,15.6,19.235,19.224,20.6798]
[1693677233304,0.45454546,19.234,19.224,20.6798]
[1693677233598,0.45454546,19.233,19.224,20.6798]
[1693677233796,228.85,19.237,19.224,20.6798]
[1693677233797,15.6,19.235,19.224,20.6798]
[1693677233992,0.45454546,19.234,19.224,20.6798]
[1693677234198,0.45454546,19.233,19.225,228.85]
[1693677234392,15.6,19.237,19.225,228.85]
[1693677234600,15.6,19.235,19.225,228.85]
[1693677234798,228.85,19.239,19.226,20.5817]
[1693677236501,15.6,19.24,19.226,249.4317]
[1693677236799,15.6,19.243,19.23,228.85]
[1693677236998,16.05454546,19.243,19.23,228.85]
[1693677237198,16.05454546,19.243,19.231,20.4622]
[1693677238298,15.6,19.243,19.231,20.4622]
[1693677239994,228.85,19.24,19.231,20.4622]
[1693677240996,228.85,19.24,19.226,228.85]
[1693677243302,15.6,19.235,19.222,21.7189]
[1693677243601,228.85,19.233,19.222,21.7189]
[1693677243804,228.85,19.231,19.222,21.7189]
[1693677244102,228.85,19.231,19.217,228.85]
[1693677244298,228.85,19.231,19.218,21.8327]
[1693677251914,228.85,19.233,19.22,228.85]
[1693677252219,13.57294093,19.269,19.222,228.85]
[1693677252220,15.6,19.235,19.222,228.85]
[1693677252420,0.45454546,19.234,19.222,228.85]
[1693677252821,15.6,19.233,19.222,228.85]
[1693677253022,16.05454546,19.235,19.222,228.85]
[1693677253221,15.6,19.233,19.222,228.85]
[1693677253423,16.05454546,19.235,19.222,228.85]
[1693677253625,15.6,19.233,19.222,228.85]
[1693677253822,16.05454546,19.235,19.222,228.85]
[1693677254124,0.45454546,19.234,19.225,228.85]
[1693677254323,228.85,19.239,19.225,228.85]
[1693677255825,228.85,19.243,19.229,228.85]
[1693677256022,244.45,19.243,19.229,228.85]
[1693677256323,229.30454546,19.243,19.23,22.1092]
[1693677256528,228.85,19.243,19.23,22.1092]
[1693677258819,244.45,19.243,19.23,22.1092]
[1693677259020,229.30454546,19.243,19.23,22.1092]
[1693677259219,228.85,19.243,19.23,22.1092]
[1693677261016,244.45,19.243,19.23,22.1092]
[1693677261215,229.30454546,19.243,19.23,22.1092]
[1693677261418,228.85,19.243,19.23,22.1092]
[1693677262525,244.45,19.243,19.23,22.1092]
[1693677262829,229.30454546,19.243,19.23,22.1092]
[1693677263026,228.85,19.243,19.23,22.1092]
[1693677264030,244.45,19.243,19.23,22.1092]
[1693677264228,229.30454546,19.243,19.23,22.1092]
[1693677264531,15.6,19.24,19.23,22.1092]
[1693677265832,0.06967663,19.237,19.23,22.1092]
[1693677268534,0.06967663,19.237,19.23,250.9592]
[1693677270230,0.06967663,19.237,19.232,228.85]
[1693677272335,0.06967663,19.237,19.234,125.0]
[1693677276143,0.45454546,19.245,19.234,125.0]
[1693677276438,0.45454546,19.245,19.236,125.0]
[1693677276638,0.45454546,19.244,19.236,125.0]
[1693677276840,0.45454546,19.243,19.236,125.0]
[1693677277039,125.0,19.249,19.236,125.0]
[1693677277040,15.6,19.247,19.236,125.0]
[1693677277239,0.45454546,19.246,19.236,125.0]
[1693677277439,15.6,19.247,19.236,125.0]
[1693677277639,0.45454546,19.246,19.236,125.0]